[Event "2026 European Womens Championship"]
[Site "Batumi, GE"]
[Date "2026.06.04"]
[Round "10"]
[White "Nahapetyan, Ani"]
[Black "Akat, Elifnaz"]
[Result "1-0"]
[Board "68"]
[TimeControl "5400+30"]
[WhiteFideId "13317776"]
[BlackFideId "34560556"]
[WhiteElo "1827"]
[BlackElo "2061"]
[BlackTitle "WFM"]
[WhiteClock "0:34:47"]
[BlackClock "0:11:46"]
[Variant "Standard"]

1. e4 {[%clk 1:30:54]}  c5 {[%clk 1:31:00]} 2. Nf3 {[%clk 1:31:15]}  d6 {[%clk 1:31:29]} 3. d4 {[%clk 1:31:38]}  cxd4 {[%clk 1:31:58]}
4. Nxd4 {[%clk 1:32:02]}  Nf6 {[%clk 1:32:27]} 5. Nc3 {[%clk 1:32:24]}  a6 {[%clk 1:32:56]} 6. Bd3 {[%clk 1:32:37]}  e5 {[%clk 1:33:25]}
7. Nde2 {[%clk 1:32:59]}  Be7 {[%clk 1:33:54]} 8. O-O {[%clk 1:33:15]}  Be6 {[%clk 1:34:20]} 9. Ng3 {[%clk 1:33:33]}  Nc6 {[%clk 1:33:29]}
10. f4 {[%clk 1:26:20]}  Qb6+ {[%clk 1:31:19]} 11. Kh1 {[%clk 1:26:43]}  exf4 {[%clk 1:31:35]} 12. Bxf4 {[%clk 1:25:20]}  Ng4 {[%clk 1:12:32]}
13. Qd2 {[%clk 1:16:25]}  Bf8 {[%clk 0:49:58]} 14. Nf5 {[%clk 1:07:39]}  Nce5 {[%clk 0:36:48]} 15. Be2 {[%clk 1:03:30]}  h5 {[%clk 0:31:03]}
16. Bxg4 {[%clk 0:56:51]}  hxg4 {[%clk 0:31:13]} 17. Nd5 {[%clk 0:55:12]}  Qd8 {[%clk 0:27:43]} 18. Qd4 {[%clk 0:50:41]}  f6 {[%clk 0:25:08]}
19. Nb6 {[%clk 0:43:38]}  Rb8 {[%clk 0:17:51]} 20. Rad1 {[%clk 0:41:43]}  Bxf5 {[%clk 0:17:55]} 21. exf5 {[%clk 0:42:06]}  Qc7 {[%clk 0:16:38]}
22. Nd5 {[%clk 0:38:39]}  Qc5 {[%clk 0:16:06]} 23. Bxe5 {[%clk 0:38:04]}  fxe5 {[%clk 0:16:06]} 24. Qxg4 {[%clk 0:38:05]}  Qc6 {[%clk 0:11:07]}
25. Qg6+ {[%clk 0:36:21]}  Kd8 {[%clk 0:11:22]} 26. f6 {[%clk 0:35:30]}  Qe8 {[%clk 0:11:46]} 27. fxg7 {[%clk 0:34:47]} 1-0

[Event "2026 European Womens Championship"]
[Site "Batumi, GE"]
[Date "2026.06.04"]
[Round "10"]
[White "Diasamidze, Lulu"]
[Black "Rodshtein, Tereza"]
[Result "1-0"]
[Board "69"]
[TimeControl "5400+30"]
[WhiteFideId "13623818"]
[BlackFideId "325449"]
[WhiteElo "1924"]
[BlackElo "2218"]
[BlackTitle "WGM"]
[WhiteClock "0:38:44"]
[BlackClock "0:28:49"]
[Variant "Standard"]

1. e4 {[%clk 1:30:55]}  e5 {[%clk 1:30:12]} 2. Nf3 {[%clk 1:31:21]}  Nc6 {[%clk 1:30:37]} 3. Bb5 {[%clk 1:31:47]}  a6 {[%clk 1:31:00]}
4. Ba4 {[%clk 1:32:14]}  Nf6 {[%clk 1:31:26]} 5. O-O {[%clk 1:32:20]}  Nxe4 {[%clk 1:31:37]} 6. d4 {[%clk 1:32:46]}  b5 {[%clk 1:32:01]}
7. Bb3 {[%clk 1:33:12]}  d5 {[%clk 1:32:28]} 8. dxe5 {[%clk 1:33:28]}  Be6 {[%clk 1:32:53]} 9. Nbd2 {[%clk 1:32:54]}  Be7 {[%clk 1:32:06]}
10. c3 {[%clk 1:33:05]}  O-O {[%clk 1:31:33]} 11. Nd4 {[%clk 1:20:51]}  Nxd4 {[%clk 1:26:35]} 12. cxd4 {[%clk 1:21:01]}  c5 {[%clk 1:18:45]}
13. Nxe4 {[%clk 1:20:28]}  dxe4 {[%clk 1:18:36]} 14. d5 {[%clk 1:20:33]}  Bf5 {[%clk 1:14:44]} 15. d6 {[%clk 1:19:50]}  Bg5 {[%clk 1:14:48]}
16. Bd5 {[%clk 1:19:51]}  Ra7 {[%clk 1:02:15]} 17. f4 {[%clk 1:17:46]}  exf3 {[%clk 1:02:25]} 18. Qxf3 {[%clk 1:17:43]}  g6 {[%clk 0:52:57]}
19. Qc3 {[%clk 0:59:14]}  Bxc1 {[%clk 0:44:43]} 20. Raxc1 {[%clk 0:59:23]}  c4 {[%clk 0:43:50]} 21. Qd4 {[%clk 0:51:53]}  Qd7 {[%clk 0:39:28]}
22. Bc6 {[%clk 0:41:48]}  Qxc6 {[%clk 0:39:49]} 23. Qxa7 {[%clk 0:42:13]}  Bd3 {[%clk 0:35:22]} 24. Rf3 {[%clk 0:40:48]}  Qd5 {[%clk 0:34:06]}
25. Re1 {[%clk 0:38:30]}  Be4 {[%clk 0:30:12]} 26. Rf2 {[%clk 0:38:55]}  Qxe5 {[%clk 0:28:49]} 27. Qe7 {[%clk 0:38:44]} 1-0

[Event "2026 European Womens Championship"]
[Site "Batumi, GE"]
[Date "2026.06.04"]
[Round "10"]
[White "Shuqja, Klean"]
[Black "Giorgadze, Mariam Ere"]
[Result "1-0"]
[Board "70"]
[TimeControl "5400+30"]
[WhiteFideId "4701585"]
[BlackFideId "13636839"]
[WhiteElo "2092"]
[BlackElo "1909"]
[WhiteTitle "WFM"]
[WhiteClock "0:01:55"]
[BlackClock "0:05:20"]
[Variant "Standard"]

1. e4 {[%clk 1:23:41]}  c5 {[%clk 1:30:55]} 2. Nf3 {[%clk 1:24:01]}  d6 {[%clk 1:31:21]} 3. Bb5+ {[%clk 1:23:25]}  Nd7 {[%clk 1:31:46]}
4. c3 {[%clk 1:22:19]}  a6 {[%clk 1:29:12]} 5. Ba4 {[%clk 1:22:19]}  Ngf6 {[%clk 1:27:34]} 6. Bc2 {[%clk 1:20:10]}  g6 {[%clk 1:26:57]}
7. O-O {[%clk 1:19:51]}  Bg7 {[%clk 1:27:05]} 8. d4 {[%clk 1:19:48]}  O-O {[%clk 1:25:39]} 9. e5 {[%clk 1:14:47]}  dxe5 {[%clk 1:24:54]}
10. dxe5 {[%clk 1:10:51]}  Ng4 {[%clk 1:22:48]} 11. e6 {[%clk 1:13:30]}  fxe6 {[%clk 1:21:05]} 12. Ng5 {[%clk 1:11:16]}  Ndf6 {[%clk 1:19:07]}
13. Qe2 {[%clk 1:08:01]}  Qc7 {[%clk 1:15:05]} 14. g3 {[%clk 0:55:42]}  Kh8 {[%clk 0:56:56]} 15. Nxe6 {[%clk 0:52:57]}  Bxe6 {[%clk 0:57:21]}
16. Qxe6 {[%clk 0:53:23]}  c4 {[%clk 0:54:22]} 17. Bf4 {[%clk 0:48:40]}  Qc5 {[%clk 0:51:55]} 18. h3 {[%clk 0:41:59]}  g5 {[%clk 0:40:03]}
19. hxg4 {[%clk 0:17:46]}  gxf4 {[%clk 0:40:28]} 20. Qf5 {[%clk 0:15:54]}  Qxf5 {[%clk 0:39:56]} 21. Bxf5 {[%clk 0:13:57]}  fxg3 {[%clk 0:39:56]}
22. fxg3 {[%clk 0:12:16]}  Nd5 {[%clk 0:36:52]} 23. Re1 {[%clk 0:10:30]}  Bh6 {[%clk 0:31:14]} 24. Re5 {[%clk 0:08:08]}  Ne3 {[%clk 0:24:40]}
25. Na3 {[%clk 0:08:00]}  Rad8 {[%clk 0:21:33]} 26. Re1 {[%clk 0:07:58]}  Rd2 {[%clk 0:18:51]} 27. R5xe3 {[%clk 0:07:04]}  Bxe3+ {[%clk 0:19:13]}
28. Rxe3 {[%clk 0:07:32]}  Rxb2 {[%clk 0:18:47]} 29. Nxc4 {[%clk 0:07:40]}  Rxa2 {[%clk 0:18:21]} 30. Rxe7 {[%clk 0:07:51]}  Rd8 {[%clk 0:17:51]}
31. Bd7 {[%clk 0:04:53]}  Kg8 {[%clk 0:15:38]} 32. Nd6 {[%clk 0:02:46]}  Kf8 {[%clk 0:14:22]} 33. Nf5 {[%clk 0:01:13]}  Rd2 {[%clk 0:12:40]}
34. Be6 {[%clk 0:00:53]}  R8d3 {[%clk 0:11:43]} 35. Rf7+ {[%clk 0:00:35]}  Ke8 {[%clk 0:12:07]} 36. g5 {[%clk 0:00:39]}  Rxc3 {[%clk 0:10:23]}
37. Ng7+ {[%clk 0:00:47]}  Kd8 {[%clk 0:10:44]} 38. Rf8+ {[%clk 0:00:59]}  Ke7 {[%clk 0:09:52]} 39. Re8+ {[%clk 0:01:19]}  Kd6 {[%clk 0:10:02]}
40. Rd8+ {[%clk 0:01:48]}  Ke7 {[%clk 0:09:54]} 41. Rxd2 {[%clk 0:01:28]}  Rxg3+ {[%clk 0:10:06]} 42. Rg2 {[%clk 0:01:37]}  Rc3 {[%clk 0:09:06]}
43. Bf5 {[%clk 0:01:13]}  Kf7 {[%clk 0:08:24]} 44. Nh5 {[%clk 0:01:10]}  Kg8 {[%clk 0:07:12]} 45. Nf6+ {[%clk 0:01:25]}  Kg7 {[%clk 0:07:26]}
46. Bxh7 {[%clk 0:01:41]}  b5 {[%clk 0:07:35]} 47. Be4 {[%clk 0:01:41]}  Rc5 {[%clk 0:05:59]} 48. Ne8+ {[%clk 0:01:32]}  Kg8 {[%clk 0:05:24]}
49. g6 {[%clk 0:01:27]}  Re5 {[%clk 0:05:20]} 50. Bd5+ {[%clk 0:01:55]} 1-0

[Event "2026 European Womens Championship"]
[Site "Batumi, GE"]
[Date "2026.06.04"]
[Round "10"]
[White "Buyuk, Ecrin Efsa"]
[Black "Damaso Tacoronte, Carolina"]
[Result "1-0"]
[Board "71"]
[TimeControl "5400+30"]
[WhiteFideId "44505175"]
[BlackFideId "2292858"]
[WhiteElo "2076"]
[BlackElo "1890"]
[WhiteTitle "WFM"]
[WhiteClock "0:05:40"]
[BlackClock "0:00:35"]
[Variant "Standard"]

1. e4 {[%clk 1:30:57]}  c6 {[%clk 1:30:54]} 2. d4 {[%clk 1:31:21]}  d5 {[%clk 1:31:19]} 3. e5 {[%clk 1:31:47]}  Bf5 {[%clk 1:31:43]}
4. Nd2 {[%clk 1:32:09]}  e6 {[%clk 1:31:56]} 5. Nb3 {[%clk 1:32:34]}  a6 {[%clk 1:32:02]} 6. Nf3 {[%clk 1:31:14]}  c5 {[%clk 1:30:53]}
7. dxc5 {[%clk 1:16:52]}  Bxc5 {[%clk 1:27:27]} 8. Nxc5 {[%clk 1:11:16]}  Qa5+ {[%clk 1:27:28]} 9. c3 {[%clk 1:11:42]}  Qxc5 {[%clk 1:27:37]}
10. Be3 {[%clk 1:12:08]}  Qc7 {[%clk 1:27:22]} 11. Be2 {[%clk 0:58:43]}  h6 {[%clk 1:25:22]} 12. O-O {[%clk 0:57:58]}  Ne7 {[%clk 1:24:18]}
13. Qa4+ {[%clk 0:52:52]}  Nd7 {[%clk 1:19:02]} 14. Bf4 {[%clk 0:49:25]}  O-O {[%clk 1:17:10]} 15. Qd4 {[%clk 0:45:47]}  Bh7 {[%clk 1:12:10]}
16. Rfe1 {[%clk 0:32:25]}  Rfd8 {[%clk 1:06:31]} 17. Qd1 {[%clk 0:27:39]}  Rac8 {[%clk 1:05:52]} 18. Nd4 {[%clk 0:23:31]}  Nc5 {[%clk 1:00:32]}
19. f3 {[%clk 0:22:56]}  b5 {[%clk 0:59:10]} 20. Qd2 {[%clk 0:21:15]}  Ng6 {[%clk 0:56:20]} 21. Bg3 {[%clk 0:20:57]}  Ne7 {[%clk 0:53:43]}
22. Bf1 {[%clk 0:17:02]}  Nf5 {[%clk 0:51:25]} 23. Bf2 {[%clk 0:15:53]}  Qe7 {[%clk 0:48:55]} 24. Rad1 {[%clk 0:12:42]}  Qc7 {[%clk 0:46:34]}
25. g4 {[%clk 0:09:56]}  Ne7 {[%clk 0:45:18]} 26. Bg3 {[%clk 0:09:25]}  Na4 {[%clk 0:43:58]} 27. Rc1 {[%clk 0:09:32]}  Nb6 {[%clk 0:44:18]}
28. b3 {[%clk 0:09:39]}  Qa7 {[%clk 0:42:12]} 29. h4 {[%clk 0:08:40]}  Nd7 {[%clk 0:40:26]} 30. Kh2 {[%clk 0:06:36]}  Nc5 {[%clk 0:39:22]}
31. h5 {[%clk 0:06:31]}  Kh8 {[%clk 0:33:19]} 32. g5 {[%clk 0:05:03]}  hxg5 {[%clk 0:33:10]} 33. Qxg5 {[%clk 0:05:29]}  Ng8 {[%clk 0:32:15]}
34. Bh4 {[%clk 0:05:30]}  Re8 {[%clk 0:32:21]} 35. Qg3 {[%clk 0:05:25]}  Qd7 {[%clk 0:27:47]} 36. b4 {[%clk 0:05:16]}  Nd3 {[%clk 0:22:22]}
37. Bxd3 {[%clk 0:05:37]}  Bxd3 {[%clk 0:22:50]} 38. Bg5 {[%clk 0:00:51]}  f6 {[%clk 0:21:55]} 39. Bf4 {[%clk 0:00:59]}  Qf7 {[%clk 0:20:42]}
40. Kg2 {[%clk 0:01:02]}  Ne7 {[%clk 0:11:57]} 41. Kf2 {[%clk 0:00:40]}  Nf5 {[%clk 0:09:23]} 42. Nxf5 {[%clk 0:27:37]}  Bxf5 {[%clk 0:39:49]}
43. h6 {[%clk 0:24:09]}  g6 {[%clk 0:28:05]} 44. h7 {[%clk 0:19:48]}  g5 {[%clk 0:16:58]} 45. Be3 {[%clk 0:17:11]}  fxe5 {[%clk 0:12:21]}
46. Qxe5+ {[%clk 0:14:08]}  Qg7 {[%clk 0:10:39]} 47. Qd6 {[%clk 0:12:07]}  Kxh7 {[%clk 0:10:14]} 48. Bd4 {[%clk 0:08:41]}  Qc7 {[%clk 0:07:41]}
49. Rh1+ {[%clk 0:08:30]}  Kg6 {[%clk 0:07:29]} 50. Qxc7 {[%clk 0:04:09]}  Rxc7 {[%clk 0:07:51]} 51. Rcg1 {[%clk 0:04:23]}  e5 {[%clk 0:03:29]}
52. Be3 {[%clk 0:04:27]}  Rh7 {[%clk 0:01:03]} 53. Rxg5+ {[%clk 0:04:41]}  Kf6 {[%clk 0:00:50]} 54. Rxf5+ {[%clk 0:05:00]}  Kxf5 {[%clk 0:01:00]}
55. Rxh7 {[%clk 0:05:26]}  Rc8 {[%clk 0:01:14]} 56. Bc5 {[%clk 0:04:58]}  Rc6 {[%clk 0:01:17]} 57. Rh5+ {[%clk 0:05:14]}  Kg6 {[%clk 0:00:35]}
58. Rxe5 {[%clk 0:05:40]} 1-0

[Event "2026 European Womens Championship"]
[Site "Batumi, GE"]
[Date "2026.06.04"]
[Round "10"]
[White "Kalayci, Nino"]
[Black "Tsiganova, Monika"]
[Result "1-0"]
[Board "72"]
[TimeControl "5400+30"]
[WhiteFideId "13603221"]
[BlackFideId "4500199"]
[WhiteElo "1755"]
[BlackElo "2039"]
[WhiteTitle "WCM"]
[BlackTitle "WIM"]
[WhiteClock "0:20:17"]
[BlackClock "0:28:44"]
[Variant "Standard"]

1. d4 {[%clk 1:30:23]}  Nf6 {[%clk 1:30:45]} 2. c4 {[%clk 1:30:33]}  c5 {[%clk 1:30:19]} 3. d5 {[%clk 1:30:07]}  b5 {[%clk 1:30:07]}
4. cxb5 {[%clk 1:30:05]}  a6 {[%clk 1:30:27]} 5. b6 {[%clk 1:22:38]}  e6 {[%clk 1:25:41]} 6. Nc3 {[%clk 1:09:33]}  Nxd5 {[%clk 1:25:01]}
7. Nxd5 {[%clk 1:09:42]}  exd5 {[%clk 1:25:22]} 8. Qxd5 {[%clk 1:09:34]}  Nc6 {[%clk 1:25:42]} 9. Bg5 {[%clk 0:52:03]}  Be7 {[%clk 1:21:19]}
10. Bxe7 {[%clk 0:50:50]}  Qxe7 {[%clk 1:08:15]} 11. Rc1 {[%clk 0:49:14]}  O-O {[%clk 0:54:39]} 12. Qxc5 {[%clk 0:44:59]}  Qe6 {[%clk 0:49:52]}
13. Qc4 {[%clk 0:26:57]}  Qe5 {[%clk 0:43:43]} 14. Qc3 {[%clk 0:24:14]}  Qb5 {[%clk 0:41:43]} 15. e3 {[%clk 0:15:07]}  Qxb6 {[%clk 0:42:03]}
16. Nf3 {[%clk 0:10:11]}  Rb8 {[%clk 0:41:10]} 17. b3 {[%clk 0:08:42]}  Bb7 {[%clk 0:40:26]} 18. Be2 {[%clk 0:06:51]}  Nb4 {[%clk 0:31:30]}
19. Qd2 {[%clk 0:07:01]}  Be4 {[%clk 0:28:29]} 20. O-O {[%clk 0:06:06]}  Qa5 {[%clk 0:27:48]} 21. Qxd7 {[%clk 0:02:08]}  Qxa2 {[%clk 0:27:50]}
22. Bc4 {[%clk 0:02:16]}  Qa5 {[%clk 0:25:07]} 23. Bxf7+ {[%clk 0:01:43]}  Kh8 {[%clk 0:23:50]} 24. Be6 {[%clk 0:00:42]}  Bxf3 {[%clk 0:22:25]}
25. gxf3 {[%clk 0:00:43]}  Qh5 {[%clk 0:21:43]} 26. Bg4 {[%clk 0:00:45]}  Qg6 {[%clk 0:22:05]} 27. Kh1 {[%clk 0:00:37]}  Rbd8 {[%clk 0:18:30]}
28. Qe6 {[%clk 0:00:42]}  Qg5 {[%clk 0:17:28]} 29. Rg1 {[%clk 0:00:32]}  Nd3 {[%clk 0:17:40]} 30. Rc2 {[%clk 0:00:45]}  Qh4 {[%clk 0:17:34]}
31. Rg3 {[%clk 0:00:34]}  Rf6 {[%clk 0:16:38]} 32. Qe7 {[%clk 0:00:35]}  Rdf8 {[%clk 0:16:48]} 33. Rc7 {[%clk 0:00:33]}  Qh6 {[%clk 0:16:17]}
34. Kg2 {[%clk 0:00:37]}  Rg8 {[%clk 0:15:04]} 35. Rc8 {[%clk 0:00:42]}  Rxc8 {[%clk 0:06:44]} 36. Bxc8 {[%clk 0:01:06]}  g5 {[%clk 0:07:04]}
37. Qd8+ {[%clk 0:00:39]}  Rf8 {[%clk 0:06:07]} 38. Qxd3 {[%clk 0:00:34]}  Rxc8 {[%clk 0:06:23]} 39. Rh3 {[%clk 0:00:39]}  Qg7 {[%clk 0:06:42]}
40. Qxa6 {[%clk 0:00:42]}  Rf8 {[%clk 0:07:00]} 41. Rg3 {[%clk 0:00:36]}  h6 {[%clk 0:06:37]} 42. f4 {[%clk 0:30:00]}  g4 {[%clk 0:36:40]}
43. h3 {[%clk 0:24:15]}  h5 {[%clk 0:33:49]} 44. Qb5 {[%clk 0:23:40]}  Qg6 {[%clk 0:33:52]} 45. Qe5+ {[%clk 0:23:35]}  Kh7 {[%clk 0:34:04]}
46. hxg4 {[%clk 0:23:27]}  hxg4 {[%clk 0:34:23]} 47. Qe7+ {[%clk 0:23:08]}  Kg8 {[%clk 0:34:06]} 48. Qg5 {[%clk 0:21:38]}  Qxg5 {[%clk 0:33:39]}
49. fxg5 {[%clk 0:22:02]}  Rb8 {[%clk 0:33:41]} 50. e4 {[%clk 0:20:21]}  Rb5 {[%clk 0:33:11]} 51. Rxg4 {[%clk 0:20:06]}  Rxb3 {[%clk 0:33:33]}
52. f4 {[%clk 0:20:20]}  Kg7 {[%clk 0:33:32]} 53. f5 {[%clk 0:20:25]}  Ra3 {[%clk 0:31:40]} 54. Rg3 {[%clk 0:20:18]}  Ra2+ {[%clk 0:31:00]}
55. Kf3 {[%clk 0:20:41]}  Ra1 {[%clk 0:31:08]} 56. Kf4 {[%clk 0:20:46]}  Rf1+ {[%clk 0:30:54]} 57. Ke5 {[%clk 0:21:07]}  Ra1 {[%clk 0:31:17]}
58. Rd3 {[%clk 0:21:20]}  Kf7 {[%clk 0:29:47]} 59. Rd7+ {[%clk 0:21:02]}  Ke8 {[%clk 0:30:11]} 60. Ke6 {[%clk 0:20:40]}  Ra6+ {[%clk 0:29:54]}
61. Rd6 {[%clk 0:21:01]}  Ra7 {[%clk 0:30:01]} 62. f6 {[%clk 0:21:13]}  Re7+ {[%clk 0:29:30]} 63. Kf5 {[%clk 0:21:19]}  Ra7 {[%clk 0:29:55]}
64. g6 {[%clk 0:21:31]}  Rb7 {[%clk 0:28:40]} 65. Ra6 {[%clk 0:21:04]}  Rb8 {[%clk 0:28:47]} 66. e5 {[%clk 0:20:34]}  Rc8 {[%clk 0:28:44]}
67. g7 {[%clk 0:20:17]} 1-0

[Event "2026 European Womens Championship"]
[Site "Batumi, GE"]
[Date "2026.06.04"]
[Round "10"]
[White "Chanturia, Lika"]
[Black "Tsirulnik, Maritsa"]
[Result "0-1"]
[Board "73"]
[TimeControl "5400+30"]
[WhiteFideId "13618857"]
[BlackFideId "14118688"]
[WhiteElo "1649"]
[BlackElo "2028"]
[BlackTitle "WFM"]
[WhiteClock "0:09:56"]
[BlackClock "0:19:15"]
[Variant "Standard"]

1. e4 {[%clk 1:30:56]}  c5 {[%clk 1:30:54]} 2. Nf3 {[%clk 1:31:21]}  e6 {[%clk 1:31:17]} 3. d4 {[%clk 1:31:48]}  cxd4 {[%clk 1:31:42]}
4. Nxd4 {[%clk 1:32:15]}  Nc6 {[%clk 1:31:46]} 5. Nc3 {[%clk 1:32:39]}  Qc7 {[%clk 1:32:07]} 6. Be3 {[%clk 1:31:58]}  a6 {[%clk 1:32:25]}
7. Qd2 {[%clk 1:31:11]}  Nf6 {[%clk 1:32:14]} 8. f3 {[%clk 1:29:28]}  Be7 {[%clk 1:29:44]} 9. O-O-O {[%clk 1:27:14]}  b5 {[%clk 1:27:21]}
10. g4 {[%clk 1:16:09]}  Bb7 {[%clk 1:26:07]} 11. Kb1 {[%clk 1:07:30]}  Rc8 {[%clk 1:22:19]} 12. Bd3 {[%clk 1:00:06]}  O-O {[%clk 1:18:38]}
13. h4 {[%clk 0:57:56]}  Rfd8 {[%clk 1:04:41]} 14. h5 {[%clk 0:48:56]}  Nxd4 {[%clk 1:00:58]} 15. Bxd4 {[%clk 0:49:17]}  e5 {[%clk 1:00:17]}
16. Be3 {[%clk 0:43:34]}  Bb4 {[%clk 0:53:35]} 17. g5 {[%clk 0:41:19]}  Ne8 {[%clk 0:53:27]} 18. Qg2 {[%clk 0:33:30]}  Bxc3 {[%clk 0:52:06]}
19. bxc3 {[%clk 0:33:33]}  Qxc3 {[%clk 0:42:40]} 20. g6 {[%clk 0:29:18]}  Rc6 {[%clk 0:41:39]} 21. gxh7+ {[%clk 0:25:54]}  Kxh7 {[%clk 0:41:20]}
22. Qg5 {[%clk 0:22:15]}  Rf6 {[%clk 0:36:28]} 23. f4 {[%clk 0:20:22]}  d6 {[%clk 0:36:40]} 24. h6 {[%clk 0:17:25]}  g6 {[%clk 0:34:27]}
25. Rdf1 {[%clk 0:11:53]}  Bxe4 {[%clk 0:33:11]} 26. Bxe4 {[%clk 0:10:10]}  Qb4+ {[%clk 0:33:37]} 27. Ka1 {[%clk 0:09:51]}  Qxe4 {[%clk 0:33:54]}
28. fxe5 {[%clk 0:08:54]}  Rxf1+ {[%clk 0:19:44]} 29. Rxf1 {[%clk 0:09:01]}  Rd7 {[%clk 0:19:29]} 30. exd6 {[%clk 0:07:47]}  f6 {[%clk 0:16:50]}
31. Qc5 {[%clk 0:06:56]}  Qc4 {[%clk 0:12:06]} 32. Qxc4 {[%clk 0:05:05]}  bxc4 {[%clk 0:12:32]} 33. Rf4 {[%clk 0:03:29]}  g5 {[%clk 0:12:22]}
34. Rxc4 {[%clk 0:03:43]}  Rxd6 {[%clk 0:12:40]} 35. Re4 {[%clk 0:03:15]}  Rd8 {[%clk 0:11:44]} 36. Re6 {[%clk 0:03:09]}  a5 {[%clk 0:08:14]}
37. c4 {[%clk 0:02:32]}  Kxh6 {[%clk 0:08:15]} 38. c5 {[%clk 0:02:08]}  Kg6 {[%clk 0:08:03]} 39. c6 {[%clk 0:01:52]}  Rc8 {[%clk 0:02:04]}
40. Bb6 {[%clk 0:00:45]}  Kf5 {[%clk 0:00:53]} 41. Re7 {[%clk 0:28:24]}  g4 {[%clk 0:26:40]} 42. c7 {[%clk 0:20:57]}  g3 {[%clk 0:26:53]}
43. Rd7 {[%clk 0:20:58]}  Kg4 {[%clk 0:26:22]} 44. Rd8 {[%clk 0:20:17]}  Rxc7 {[%clk 0:26:32]} 45. Rxe8 {[%clk 0:19:48]}  Rc6 {[%clk 0:25:01]}
46. Bxa5 {[%clk 0:17:27]}  f5 {[%clk 0:18:39]} 47. Bd2 {[%clk 0:15:35]}  f4 {[%clk 0:17:52]} 48. Re4 {[%clk 0:09:27]}  g2 {[%clk 0:15:07]}
49. Rxf4+ {[%clk 0:08:23]}  Kg3 {[%clk 0:15:31]} 50. Be3 {[%clk 0:08:10]}  Re6 {[%clk 0:15:51]} 51. Rf5 {[%clk 0:06:32]}  Rxe3 {[%clk 0:16:15]}
52. Kb2 {[%clk 0:06:47]}  Kg4 {[%clk 0:16:18]} 53. Rf7 {[%clk 0:06:56]}  Rg3 {[%clk 0:16:42]} 54. Rg7+ {[%clk 0:07:10]}  Kf3 {[%clk 0:17:06]}
55. Rf7+ {[%clk 0:07:36]}  Ke4 {[%clk 0:17:20]} 56. Re7+ {[%clk 0:08:03]}  Kd5 {[%clk 0:17:42]} 57. Re1 {[%clk 0:08:05]}  g1=Q {[%clk 0:18:06]}
58. Rxg1 {[%clk 0:08:33]}  Rxg1 {[%clk 0:18:29]} 59. Kb3 {[%clk 0:09:00]}  Kc5 {[%clk 0:18:48]} 60. Ka4 {[%clk 0:09:17]}  Rg3 {[%clk 0:19:03]}
61. a3 {[%clk 0:09:36]}  Rf3 {[%clk 0:19:22]} 62. Ka5 {[%clk 0:09:56]}  Rxa3# {[%clk 0:19:15]} 0-1

[Event "2026 European Womens Championship"]
[Site "Batumi, GE"]
[Date "2026.06.04"]
[Round "10"]
[White "Muradyan, Anahit"]
[Black "Asatiani, Natali"]
[Result "1-0"]
[Board "74"]
[TimeControl "5400+30"]
[WhiteFideId "13314807"]
[BlackFideId "13636715"]
[WhiteElo "1977"]
[BlackElo "1603"]
[WhiteClock "1:02:58"]
[BlackClock "0:29:55"]
[Variant "Standard"]

1. Nf3 {[%clk 1:30:58]}  d5 {[%clk 1:29:27]} 2. d4 {[%clk 1:31:24]}  Nf6 {[%clk 1:28:31]} 3. c4 {[%clk 1:31:49]}  e6 {[%clk 1:28:52]}
4. g3 {[%clk 1:32:15]}  Bb4+ {[%clk 1:23:33]} 5. Bd2 {[%clk 1:32:18]}  Bxd2+ {[%clk 1:23:10]} 6. Nbxd2 {[%clk 1:32:43]}  O-O {[%clk 1:23:20]}
7. Bg2 {[%clk 1:33:09]}  Nbd7 {[%clk 1:16:02]} 8. O-O {[%clk 1:33:32]}  b6 {[%clk 1:09:12]} 9. cxd5 {[%clk 1:32:44]}  Nxd5 {[%clk 1:08:01]}
10. Qc2 {[%clk 1:32:05]}  Bb7 {[%clk 1:06:12]} 11. Rac1 {[%clk 1:31:48]}  Rc8 {[%clk 1:05:02]} 12. Nc4 {[%clk 1:30:26]}  N7f6 {[%clk 0:57:23]}
13. a3 {[%clk 1:30:04]}  h6 {[%clk 0:50:39]} 14. Nfe5 {[%clk 1:28:04]}  c5 {[%clk 0:50:00]} 15. dxc5 {[%clk 1:27:42]}  Rxc5 {[%clk 0:49:01]}
16. b4 {[%clk 1:27:16]}  Rc7 {[%clk 0:48:25]} 17. Qb2 {[%clk 1:22:46]}  Qb8 {[%clk 0:33:32]} 18. Rfd1 {[%clk 1:18:21]}  Rfc8 {[%clk 0:29:00]}
19. b5 {[%clk 1:09:18]}  Nd7 {[%clk 0:21:43]} 20. Bxd5 {[%clk 0:58:47]}  Nxe5 {[%clk 0:13:54]} 21. Nxe5 {[%clk 0:50:42]}  Bxd5 {[%clk 0:12:42]}
22. Rxc7 {[%clk 0:49:00]}  Qxc7 {[%clk 0:12:05]} 23. f3 {[%clk 0:47:59]}  f6 {[%clk 0:07:09]} 24. Nd3 {[%clk 0:46:11]}  Qe7 {[%clk 0:01:21]}
25. e4 {[%clk 0:45:02]}  Bb7 {[%clk 0:01:38]} 26. Rc1 {[%clk 0:44:02]}  Qd7 {[%clk 0:00:42]} 27. Nf4 {[%clk 0:42:20]}  Rxc1+ {[%clk 0:00:34]}
28. Qxc1 {[%clk 0:42:48]}  e5 {[%clk 0:00:36]} 29. Qc4+ {[%clk 0:42:41]}  Kh7 {[%clk 0:00:45]} 30. Nd5 {[%clk 0:37:58]}  f5 {[%clk 0:00:33]}
31. Qd3 {[%clk 0:36:07]}  Qd6 {[%clk 0:00:33]} 32. Kg2 {[%clk 0:32:52]}  Kh8 {[%clk 0:00:40]} 33. a4 {[%clk 0:30:53]}  Qc5 {[%clk 0:00:32]}
34. Qc3 {[%clk 0:28:29]}  Qxc3 {[%clk 0:00:57]} 35. Nxc3 {[%clk 0:28:56]}  fxe4 {[%clk 0:01:14]} 36. fxe4 {[%clk 0:29:24]}  Kg8 {[%clk 0:01:30]}
37. Kf3 {[%clk 0:29:45]}  Kf7 {[%clk 0:01:34]} 38. Nd5 {[%clk 0:28:41]}  Bxd5 {[%clk 0:01:08]} 39. exd5 {[%clk 0:29:07]}  Ke7 {[%clk 0:01:34]}
40. Ke4 {[%clk 0:29:34]}  Kd6 {[%clk 0:01:58]} 41. g4 {[%clk 0:29:48]}  h5 {[%clk 0:29:08]} 42. gxh5 {[%clk 1:00:01]}  Kd7 {[%clk 0:28:55]}
43. Kxe5 {[%clk 1:00:26]}  Ke7 {[%clk 0:29:21]} 44. d6+ {[%clk 1:00:53]}  Kd7 {[%clk 0:29:46]} 45. h4 {[%clk 1:01:15]}  Kd8 {[%clk 0:28:42]}
46. Ke6 {[%clk 1:01:40]}  Ke8 {[%clk 0:29:08]} 47. d7+ {[%clk 1:02:07]}  Kd8 {[%clk 0:29:36]} 48. Kd6 {[%clk 1:02:33]}  a5 {[%clk 0:29:55]}
49. bxa6 {[%clk 1:02:58]} 1-0